bitfinex-derivatives/quotes_BNBF0:USTF0_20250904
["timestamp","ask_amount","ask_price","bid_price","bid_amount"]
[1756947262142,0.20301607,857.55,856.9,0.58371963]
[1756947262340,0.20301607,857.55,856.87,1.482]
[1756947262540,0.20301607,857.55,856.88,0.58371952]
[1756947262740,0.20301607,857.55,856.89,0.58371952]
[1756947262941,0.20301607,857.55,856.87,1.482]
[1756947269548,0.20301607,857.55,856.86,2.003]
[1756947272247,0.20301607,857.55,856.87,1.471]
[1756947272951,0.20301607,857.55,856.88,0.58371918]
[1756947273147,0.20301607,857.55,856.89,0.58371918]
[1756947273445,0.20301607,857.55,856.9,0.58371918]
[1756947273650,0.20301607,857.55,856.91,0.58371918]
[1756947273851,0.20301607,857.55,856.87,1.471]
[1756947274051,0.20301607,857.55,856.88,0.5837198]
[1756947274252,0.20301607,857.55,856.89,0.5837198]
[1756947274450,0.20301607,857.55,856.9,0.5837198]
[1756947274646,0.20301607,857.55,856.91,0.5837198]
[1756947274951,0.20301607,857.55,856.87,1.471]
[1756947275151,0.20301607,857.55,856.88,0.58371974]
[1756947275353,0.20301607,857.55,856.89,0.58371974]
[1756947275548,0.20301607,857.55,856.9,0.58371974]
[1756947275748,0.20301607,857.55,856.91,0.58371974]
[1756947275949,0.20301607,857.55,856.87,1.471]
[1756947276154,0.20301607,857.55,856.88,0.58371974]
[1756947276348,0.20301607,857.55,856.89,0.58371974]
[1756947276651,0.20301607,857.55,856.9,0.58371974]
[1756947276849,0.20301607,857.55,856.91,0.58371974]
[1756947277048,0.20301607,857.55,856.87,1.471]
[1756947277250,0.20301607,857.55,856.88,0.58371974]
[1756947277449,0.20301607,857.55,856.89,0.58371974]
[1756947277654,0.20301607,857.55,856.9,0.58371974]
[1756947277948,0.20301607,857.55,856.91,0.58371974]
[1756947278151,0.20301607,857.55,856.92,0.58371974]
[1756947278354,0.20301607,857.55,856.87,1.471]
[1756947278555,0.20301607,857.55,856.88,0.58371974]
[1756947278753,0.20301607,857.55,856.89,0.58371974]
[1756947279049,0.20301607,857.55,856.9,0.58371974]
[1756947279252,0.20301607,857.55,856.91,0.58371974]
[1756947279550,0.20301607,857.55,856.87,1.471]
[1756947279749,0.20301607,857.55,856.88,0.58371974]
[1756947279953,0.20301607,857.55,856.89,0.58371974]
[1756947280148,0.20301607,857.55,856.87,1.471]
[1756947280149,0.20301607,857.55,856.9,0.58371974]
[1756947280353,0.20301607,857.55,856.91,0.58371974]
[1756947280551,0.20301607,857.55,856.87,1.471]
[1756947280754,0.20301607,857.55,856.88,0.58371996]
[1756947280953,0.20301607,857.55,856.89,0.58371996]
[1756947281250,0.20301607,857.55,856.9,0.58371996]
[1756947281454,0.20301607,857.55,856.91,0.58371996]
[1756947281650,0.20301607,857.55,856.87,1.471]
[1756947281854,0.20301607,857.55,856.88,0.58371974]
[1756947282154,0.20301607,857.55,856.89,0.58371974]
[1756947282350,0.20301607,857.55,856.9,0.58371974]
[1756947282551,0.20301607,857.55,856.91,0.58371974]
[1756947282750,0.20301607,857.55,856.87,1.471]
[1756947282950,0.20301607,857.55,856.88,0.58371968]
[1756947283254,0.20301607,857.55,856.89,0.58371968]
[1756947283452,0.20301607,857.55,856.9,0.58371968]
[1756947283652,0.20301607,857.55,856.87,1.471]
[1756947283851,0.20301607,857.55,856.88,0.58371968]
[1756947284052,0.20301607,857.55,856.89,0.58371968]
[1756947284356,0.20301607,857.55,856.9,0.58371968]
[1756947284555,0.20301607,857.55,856.87,1.471]
[1756947284855,0.20301607,857.55,856.88,0.58371957]
[1756947285052,0.20301607,857.55,856.89,0.58371957]
[1756947285250,0.20301607,857.55,856.9,0.58371957]
[1756947285456,0.20301607,857.55,856.87,1.471]
[1756947285658,0.20301607,857.55,856.88,0.58371957]
[1756947285956,0.20301607,857.55,856.89,0.58371957]
[1756947286153,0.20301607,857.55,856.9,0.58371957]
[1756947286356,0.20301607,857.55,856.87,1.471]
[1756947286554,0.20301607,857.55,856.88,0.58371963]
[1756947286857,0.20301607,857.55,856.89,0.58371963]
[1756947287055,0.20301607,857.55,856.9,0.58371963]
[1756947287255,0.20301607,857.55,856.91,0.58371963]
[1756947287455,0.20301607,857.55,856.92,0.58371963]
[1756947287654,0.20301607,857.55,856.93,0.583714]
[1756947287958,0.20301607,857.55,856.94,0.583714]
[1756947288259,0.20301607,857.55,856.87,1.471]
[1756947288459,0.20301607,857.55,856.88,0.58371388]
[1756947288655,0.20301607,857.55,856.89,0.58371388]
[1756947288959,0.20301607,857.55,856.9,0.58371388]
[1756947289160,0.20301607,857.55,856.91,0.58371388]
[1756947289360,0.20301607,857.55,856.92,0.58371388]
[1756947289656,0.20301607,857.55,856.93,0.58371388]
[1756947289856,0.20301607,857.55,856.94,0.58371388]
[1756947290154,0.20301607,857.55,856.95,0.58371388]
[1756947290353,0.20301607,857.55,856.96,0.58371388]
[1756947290554,0.20301607,857.55,856.97,0.58371388]
[1756947290757,0.20301607,857.55,856.91,1.609]
[1756947290956,0.20301607,857.55,856.92,0.58371349]
[1756947291156,0.20301607,857.55,856.93,0.58371349]
[1756947291355,0.20301607,857.55,856.94,0.58371349]
[1756947291562,0.20301607,857.55,856.95,0.58371349]
[1756947291859,0.20301607,857.55,856.96,0.58371349]
[1756947292056,0.20301607,857.55,856.97,0.58371349]
[1756947292257,0.20301607,857.55,856.98,0.58371349]
[1756947292458,0.20301607,857.55,856.99,0.58371349]
[1756947292663,0.20301607,857.55,857.0,0.58371349]
[1756947292958,0.20301607,857.55,856.91,1.609]
[1756947293163,0.20301607,857.55,856.92,0.58369089]
[1756947293362,0.20301607,857.55,856.93,0.58369089]
[1756947293559,0.20301607,857.55,856.94,0.58369089]
[1756947293760,0.20301607,857.55,856.95,0.58369089]
[1756947294060,0.20301607,857.55,856.96,0.58369089]
[1756947294258,0.20301607,857.55,856.97,0.58369089]
[1756947294464,0.20301607,857.55,856.98,0.58369089]
[1756947294760,0.20301607,857.55,856.99,0.58369089]
[1756947295060,0.20301607,857.55,857.0,0.58369089]
[1756947295365,0.20301607,857.55,857.01,0.58369089]
[1756947295562,0.20301607,857.55,857.02,0.58369089]
[1756947295758,0.20301607,857.55,857.03,0.58369089]
[1756947295957,0.20301607,857.55,856.91,1.609]
[1756947296159,0.20301607,857.55,856.92,1.30333909]
[1756947296364,0.20301607,857.55,856.93,0.58367402]
[1756947296564,0.20301607,857.55,856.94,0.58367402]
[1756947296861,0.20301607,857.55,856.95,0.58367402]
[1756947297063,0.20301607,857.55,856.96,0.58367402]
[1756947297262,0.20301607,857.55,856.97,0.58367402]
[1756947297470,0.20301607,857.55,856.98,0.58367402]
[1756947297659,0.20301607,857.55,856.99,0.58367402]
[1756947297864,0.20301607,857.55,857.0,0.58367402]
[1756947298062,0.20301607,857.55,857.01,0.58367402]
[1756947298261,0.20301607,857.55,856.91,1.609]
[1756947298461,0.20301607,857.55,856.92,0.58367397]
[1756947298662,0.20301607,857.55,856.93,0.58367397]
[1756947298865,0.20301607,857.55,856.94,0.58367397]
[1756947299161,0.20301607,857.55,856.95,0.58367397]
[1756947299463,0.20301607,857.55,856.96,0.58367397]
[1756947299662,0.20301607,857.55,856.97,0.58367397]
[1756947299865,0.20301607,857.55,856.98,0.58367397]
[1756947300062,0.20301607,857.55,856.99,0.58367397]
[1756947300267,0.20301607,857.55,856.91,1.609]
[1756947300462,0.20301607,857.55,856.92,0.58367397]
[1756947300665,0.20301607,857.55,856.93,0.58367397]
[1756947300863,0.20301607,857.55,856.94,0.58367397]
[1756947301067,0.20301607,857.55,856.95,0.58367397]
[1756947301369,0.20301607,857.55,856.96,0.58367397]
[1756947301563,0.20301607,857.55,856.97,0.58367397]
[1756947301767,0.20301607,857.55,856.98,0.58367397]
[1756947301964,0.20301607,857.55,856.91,1.609]
[1756947302164,0.20301607,857.55,856.92,0.58367397]
[1756947302365,0.20301607,857.55,856.93,0.58367397]
[1756947302564,0.20301607,857.55,856.94,0.58367397]
[1756947302768,0.20301607,857.55,856.95,0.58367397]
[1756947302970,0.20301607,857.55,856.87,1.471]
[1756947305869,0.20301607,857.55,856.88,1.768]
[1756947308274,0.20301607,857.55,856.89,0.58367391]
[1756947308575,0.20301607,857.55,856.9,0.58367391]
[1756947308773,0.20301607,857.55,856.91,0.58367391]
[1756947309069,0.20301607,857.55,856.92,0.58367391]
[1756947309273,0.20301607,857.55,856.93,0.58367391]
[1756947309472,0.20301607,857.55,856.94,0.58367391]
[1756947309672,0.20301607,857.55,856.88,1.768]
[1756947309874,0.20301607,857.55,856.89,0.58366264]
[1756947310075,0.20301607,857.55,856.9,0.58366264]
[1756947310273,0.20301607,857.55,856.91,0.58366264]
[1756947310475,0.20301607,857.55,856.92,0.58366264]
[1756947310674,0.20301607,857.55,856.93,0.58366264]
[1756947310974,0.20301607,857.55,856.94,0.58366264]
[1756947311279,0.20301607,857.55,856.88,1.768]
[1756947311579,0.20301607,857.55,856.89,0.58366264]
[1756947311777,0.20301607,857.55,856.9,0.58366264]
[1756947311977,0.20301607,857.55,856.91,0.58366264]
[1756947312177,0.20301607,857.55,856.92,0.58366264]
[1756947312479,0.20301607,857.55,856.93,0.58366264]
[1756947312677,0.20301607,857.55,856.94,0.58366264]
[1756947312976,0.20301607,857.55,856.95,1.30329514]
[1756947313177,0.20301607,857.55,856.96,1.30329514]
[1756947313378,0.20301607,857.55,856.97,0.58366269]
[1756947313580,0.20301607,857.55,856.98,0.58366269]
[1756947313780,0.20301607,857.55,856.99,0.58366269]
[1756947313983,0.20301607,857.55,857.0,0.58366269]
[1756947314177,0.20301607,857.55,857.01,0.58366269]
[1756947314382,0.20301607,857.55,857.02,0.58366269]
[1756947314579,0.20301607,857.55,857.03,0.58366269]
[1756947314883,0.20301607,857.55,857.04,0.58366269]
[1756947315080,0.20301607,857.55,857.05,0.58366269]
[1756947315284,0.20301607,857.55,857.06,0.58366269]
[1756947315582,0.20301607,857.55,857.07,0.58366269]
[1756947315777,0.20301607,857.55,856.88,1.768]
[1756947315982,0.20301607,857.55,856.89,1.30328794]
[1756947316179,0.20301607,857.55,856.9,1.30328794]
[1756947316383,0.20301607,857.55,856.91,1.30328794]
[1756947316584,0.20301607,857.55,856.92,1.30328794]
[1756947316780,0.20301607,857.55,856.93,1.30328794]
[1756947316983,0.20301607,857.55,856.94,1.30328794]
[1756947317183,0.20301607,857.55,856.95,1.30328794]
[1756947317383,0.20301607,857.55,856.96,1.30328794]
[1756947317582,0.20301607,857.55,856.97,0.58366269]
[1756947317787,0.20301607,857.55,856.98,0.58366269]
[1756947317987,0.20301607,857.55,856.99,0.58366286]
[1756947318287,0.20301607,857.55,857.0,0.58366286]
[1756947318486,0.20301607,857.55,857.01,0.58366286]
[1756947318782,0.20301607,857.55,857.02,0.58366286]
[1756947318985,0.20301607,857.55,857.03,0.58366286]
[1756947319183,0.20301607,857.55,856.88,1.768]
[1756947319387,0.20301607,857.55,856.89,1.30331651]
[1756947319587,0.20301607,857.55,856.9,1.30331651]
[1756947319786,0.20301607,857.55,856.91,1.30331651]
[1756947319984,0.20301607,857.55,856.92,1.30331651]
[1756947320187,0.20301607,857.55,856.93,1.30331651]
[1756947320488,0.20301607,857.55,856.94,0.58366286]
[1756947320687,0.20301607,857.55,856.95,0.58366286]
[1756947320886,0.20301607,857.55,856.96,0.58366286]
[1756947321089,0.20301607,857.55,856.97,0.58366286]
[1756947321283,0.20301607,857.55,856.98,0.58366286]
[1756947321588,0.20301607,857.55,856.99,0.58366286]
[1756947321785,0.20301607,857.55,857.0,0.58366286]
[1756947321990,0.20301607,857.55,857.01,0.58366286]
[1756947322185,0.20301607,857.55,856.87,1.471]
[1756947322387,0.20301607,857.55,856.88,0.58366286]
[1756947322587,0.20301607,857.55,856.89,1.3032981]
[1756947322889,0.20301607,857.55,856.9,1.3032981]
[1756947323087,0.20301607,857.55,856.91,0.58366286]
[1756947323287,0.20301607,857.55,856.92,0.58366286]
[1756947323486,0.20301607,857.55,856.93,0.58366286]
[1756947323686,0.20301607,857.55,856.94,0.58366286]
[1756947323890,0.20301607,857.55,856.95,0.58366286]
[1756947324190,0.20301607,857.55,856.96,0.58366286]
[1756947324486,0.20301607,857.55,856.97,2.34066286]
[1756947324686,0.20301607,857.55,856.98,0.58366286]
[1756947324887,0.20301607,857.55,856.99,0.58366286]
[1756947325087,0.20301607,857.55,856.97,1.757]
[1756947325391,0.20301607,857.55,856.98,0.58366325]
[1756947325587,0.20301607,857.55,856.99,0.58366325]
[1756947325792,0.20301607,857.55,856.97,1.757]
[1756947326088,0.20301607,857.55,856.98,0.58366331]
[1756947326292,0.20301607,857.55,856.99,0.58366331]
[1756947326494,0.20301607,857.55,857.0,0.58366331]
[1756947326691,0.20301607,857.55,856.97,1.757]
[1756947326992,0.20301607,857.55,856.98,0.58366331]
[1756947327194,0.20301607,857.55,856.99,0.58366331]
[1756947327394,0.20301607,857.55,857.0,0.58366331]
[1756947327594,0.20301607,857.55,856.97,1.757]
[1756947327791,0.20301607,857.55,856.98,0.58366331]
[1756947327989,0.20301607,857.55,856.99,0.58366331]
[1756947328194,0.20301607,857.55,857.0,0.58366331]
[1756947328392,0.20301607,857.55,856.97,1.757]
[1756947328593,0.20301607,857.55,856.98,0.58366331]
[1756947328792,0.20301607,857.55,856.99,0.58366331]
[1756947328995,0.20301607,857.55,857.0,0.58366331]
[1756947329295,0.20301607,857.55,857.0,1.426]
[1756947329496,0.20301607,857.55,857.01,0.58366331]
[1756947329693,0.20301607,857.55,857.0,1.426]
[1756947329896,0.20301607,857.55,857.01,0.58366331]
[1756947330097,0.20301607,857.55,857.02,0.58366331]
[1756947330393,0.20301607,857.55,857.03,0.58366331]
[1756947330593,0.20301607,857.55,857.04,0.58366331]
[1756947330793,0.20301607,857.55,857.05,0.58366331]
[1756947330993,0.20301607,857.55,857.06,0.58366331]
[1756947331196,0.20301607,857.55,857.07,0.58366331]
[1756947331395,0.20301607,857.55,857.08,0.58366331]
[1756947331694,0.20301607,857.55,857.0,1.426]
[1756947331892,0.20301607,857.55,857.01,0.58366331]
[1756947332094,0.20301607,857.55,857.02,0.58366331]
[1756947332297,0.20301607,857.55,857.03,0.58366331]
[1756947332497,0.20301607,857.55,857.04,0.58366331]
[1756947332695,0.20301607,857.55,857.05,0.58366331]
[1756947332897,0.20301607,857.55,857.06,0.58366331]
[1756947333099,0.20301607,857.55,857.07,0.58366331]
[1756947333299,0.20301607,857.55,857.0,1.426]
[1756947333498,0.20301607,857.55,857.01,0.58366331]
[1756947333701,0.20301607,857.55,857.02,0.58366331]
[1756947333901,0.20301607,857.55,857.03,0.58366331]
[1756947334101,0.20301607,857.55,857.04,0.58366331]
[1756947334401,0.20301607,857.55,857.05,0.58366331]
[1756947334597,0.20301607,857.55,857.06,0.58366331]
[1756947334796,0.20301607,857.55,857.07,0.58366331]
[1756947334996,0.20301607,857.55,857.0,1.426]
[1756947335200,0.20301607,857.55,857.01,0.58366331]
[1756947335400,0.20301607,857.55,857.02,0.58366331]
[1756947335598,0.20301607,857.55,857.03,0.58366331]
[1756947335803,0.20301607,857.55,857.04,0.58366331]
[1756947336097,0.20301607,857.55,857.05,0.58366331]
[1756947336301,0.20301607,857.55,857.06,0.58366331]
[1756947336598,0.20301607,857.55,857.07,0.58366331]
[1756947336905,0.20301607,857.55,857.0,1.426]
[1756947337098,0.20301607,857.55,857.01,0.58366331]
[1756947337298,0.20301607,857.55,857.02,0.58366331]
[1756947337500,0.20301607,857.55,857.03,0.58366331]
[1756947337703,0.20301607,857.55,857.04,0.58366331]
[1756947337903,0.20301607,857.55,857.05,0.58366331]
[1756947338104,0.20301607,857.55,857.06,0.58366331]
[1756947338307,0.20301607,857.55,857.07,0.58366331]
[1756947338507,0.20301607,857.55,857.0,1.426]
[1756947338706,0.20301607,857.55,857.01,0.58366314]
[1756947338904,0.20301607,857.55,857.02,0.58366314]
[1756947339103,0.20301607,857.55,857.03,0.58366314]
[1756947339304,0.20301607,857.55,857.04,0.58366314]
[1756947339502,0.20301607,857.55,857.05,0.58366314]
[1756947339707,0.20301607,857.55,857.06,0.58366314]
[1756947340003,0.20301607,857.55,857.0,1.426]
[1756947340207,0.20301607,857.55,857.01,0.58366314]
[1756947340504,0.20301607,857.55,857.0,1.426]
[1756947340703,0.20301607,857.55,857.01,0.58366314]
[1756947340908,0.20301607,857.55,857.0,1.426]
[1756947341105,0.20301607,857.55,857.01,0.58366314]
[1756947341308,0.20301607,857.55,857.0,1.426]
[1756947341608,0.20301607,857.55,857.01,0.58366314]
[1756947341806,0.20301607,857.55,857.0,1.426]
[1756947342010,0.20301607,857.55,857.01,0.58366314]
[1756947342209,0.20301607,857.55,857.0,1.426]
[1756947342408,0.20301607,857.55,857.01,0.58366314]
[1756947342709,0.20301607,857.55,857.0,1.426]
[1756947344211,0.20301607,857.55,857.01,0.58366275]
[1756947344410,0.20301607,857.55,857.0,1.426]
[1756947344606,0.20301607,857.55,857.01,0.58366275]
[1756947344811,0.20301607,857.55,857.0,1.426]
[1756947345011,0.20301607,857.55,857.01,0.58366275]
[1756947345309,0.20301607,857.55,857.02,0.58366275]
[1756947345507,0.20301607,857.55,857.03,0.58366275]
[1756947345711,0.20301607,857.55,857.0,1.426]
[1756947345913,0.20301607,857.55,857.01,0.5836628]
[1756947346110,0.20301607,857.55,857.02,0.5836628]
[1756947346310,0.20301607,857.55,857.03,0.5836628]
[1756947346510,0.20301607,857.55,857.0,1.426]
[1756947346709,0.20301607,857.55,857.01,0.58366297]
[1756947346907,0.20301607,857.55,857.02,0.58366297]
[1756947347111,0.20301607,857.55,857.03,0.58366297]
[1756947347313,0.20301607,857.55,857.04,0.58366297]
[1756947347516,0.20301607,857.55,857.0,1.426]
[1756947347714,0.20301607,857.55,857.01,0.58366297]
[1756947348014,0.20301607,857.55,857.02,0.58366297]
[1756947348217,0.20301607,857.55,857.03,0.58366297]
[1756947348418,0.20301607,857.55,857.04,0.58366297]
[1756947348613,0.20301607,857.55,857.0,1.426]
[1756947348813,0.20301607,857.55,857.01,0.58366297]
[1756947349015,0.20301607,857.55,857.02,0.58366297]
[1756947349214,0.20301607,857.55,857.03,0.58366297]
[1756947349416,0.20301607,857.55,857.04,0.58366297]
[1756947349616,0.20301607,857.55,857.02,1.952]
[1756947349820,0.20301607,857.55,857.03,0.58366292]
[1756947350018,0.20301607,857.55,857.04,0.58366292]
[1756947350222,0.20301607,857.55,857.05,0.58366297]
[1756947350420,0.20301607,857.55,857.02,1.952]
[1756947350620,0.20301607,857.55,857.03,0.58366297]
[1756947350821,0.20301607,857.55,857.04,0.58366297]
[1756947351018,0.20301607,857.55,857.05,0.58366297]
[1756947351218,0.20301607,857.55,857.02,1.952]
[1756947351429,0.20301607,857.55,857.03,0.58366336]
[1756947351618,0.20301607,857.55,857.04,0.58366336]
[1756947351822,0.20301607,857.55,857.05,0.58366336]
[1756947352020,0.20301607,857.55,857.02,1.952]
[1756947352219,0.20301607,857.55,857.03,0.58366325]
[1756947352420,0.20301607,857.55,857.04,0.58366319]
[1756947352724,0.20301607,857.55,857.02,1.952]
[1756947378150,0.20301607,857.55,857.03,0.58366264]
[1756947378347,0.20301607,857.55,857.02,1.952]
[1756947378549,0.20301607,857.55,857.03,0.58366247]
[1756947378853,0.20301607,857.55,857.04,0.58366264]
[1756947379046,0.20301607,857.55,857.02,1.952]
[1756947379350,0.20301607,857.55,857.03,0.58366264]
[1756947379545,0.20301607,857.55,857.04,0.58366264]
[1756947379749,0.20301607,857.55,857.02,1.952]
[1756947379948,0.20301607,857.55,857.03,0.58366264]
[1756947380147,0.20301607,857.55,857.04,0.58366264]
[1756947380359,0.20301607,857.55,857.02,1.952]
[1756947380548,0.20301607,857.55,857.03,0.58366264]
[1756947380846,0.20301607,857.55,857.04,0.58366264]
[1756947381050,0.20301607,857.55,857.02,1.952]
[1756947381249,0.20301607,857.55,857.03,0.58366314]
[1756947381447,0.20301607,857.55,857.02,1.952]
[1756947381448,0.20301607,857.55,857.04,1.30190995]
[1756947381751,0.20301607,857.55,857.05,1.30190995]
[1756947382052,0.20301607,857.55,857.06,1.30190995]
[1756947382348,0.20301607,857.55,857.02,1.952]
[1756947382349,0.20301607,857.55,857.07,1.30190995]
[1756947382651,0.20301607,857.55,857.08,0.58366314]
[1756947382850,0.20301607,857.55,857.09,0.58366314]
[1756947383048,0.20301607,857.55,857.1,0.58366314]
[1756947383248,0.20301607,857.55,857.11,0.58366314]
[1756947383448,0.20301607,857.55,857.12,0.58366314]
[1756947383650,0.20301607,857.55,857.13,0.58366314]
[1756947383849,0.20301607,857.55,857.14,0.58366314]
[1756947384048,0.20301607,857.55,857.15,0.58366314]
[1756947384251,0.20301607,857.55,857.16,0.58366314]
[1756947384550,0.20301607,857.55,857.17,0.58366314]
[1756947384751,0.20301607,857.55,857.02,1.952]
[1756947384952,0.20301607,857.55,857.03,1.30119714]
[1756947385248,0.20301607,857.55,857.04,1.30119714]
[1756947385453,0.20301607,857.55,857.05,1.30119714]
[1756947385660,0.20301607,857.55,857.06,0.58358372]
[1756947385850,0.20301607,857.55,857.07,0.58358372]
[1756947386047,0.20301607,857.55,857.06,1.571]
[1756947386048,0.20301607,857.55,857.08,0.58358372]
[1756947386250,0.20301607,857.55,857.09,0.58358372]
[1756947386450,0.20301607,857.55,857.1,0.58358372]
[1756947386652,0.20301607,857.55,857.11,0.58358372]
[1756947386854,0.20301607,857.55,857.12,0.58358372]
[1756947387052,0.20301607,857.55,857.13,0.58358372]
[1756947387352,2.6281651,858.56,857.06,1.571]
[1756947387555,2.6281651,858.49,857.07,0.58358344]
[1756947387852,2.6281651,858.49,857.08,0.58358344]
[1756947388150,2.6281651,858.49,857.09,0.58358344]
[1756947388354,2.6281651,858.49,857.1,0.58358344]
[1756947388550,2.6281651,858.49,857.11,0.58358344]
[1756947388756,2.6281651,858.45,857.06,1.571]
[1756947389055,2.6281651,858.45,857.07,0.58358344]
[1756947389251,2.6281651,858.45,857.08,0.58358344]
[1756947389455,2.6281651,858.45,857.09,0.58358344]
[1756947389656,2.6281651,858.46,857.1,0.58358344]
[1756947389851,2.6281651,858.46,857.11,0.58358344]
[1756947390155,2.6281651,858.46,857.06,1.571]
[1756947390452,2.6281651,858.46,857.07,0.58358339]
[1756947390655,2.6281651,858.47,857.08,0.58358339]
[1756947390854,2.6281651,858.47,857.09,0.58358339]
[1756947391056,2.6281651,858.47,857.1,0.58358339]
[1756947391253,2.6281651,858.36,857.06,1.571]
[1756947391452,2.6281651,858.36,857.07,0.58358356]
[1756947391653,0.20293024,858.04,857.08,0.58358356]
[1756947391855,0.20293024,858.04,857.06,1.571]
[1756947392055,0.20293024,858.04,857.07,0.58358356]
[1756947392356,0.20293024,858.04,857.08,0.58358356]
[1756947392555,0.20293024,858.04,857.06,1.571]
[1756947392753,0.20293024,858.04,857.07,0.58358356]
[1756947392958,0.20293024,858.04,857.06,1.571]
[1756947403071,0.20293024,858.04,857.07,0.58357229]
[1756947403270,0.20293024,858.04,857.08,0.58357229]
[1756947403469,0.20293024,858.04,857.09,0.58357229]
[1756947403766,0.20293024,858.04,857.1,0.58357229]
[1756947403970,0.20293024,858.04,857.11,0.58357229]
[1756947404169,0.20293024,858.04,857.06,1.571]
[1756947404372,0.20293024,858.04,857.07,0.58357229]
[1756947404668,0.20293024,858.04,857.08,0.58357229]
[1756947404868,0.20293024,858.04,857.09,0.58357229]
[1756947405079,0.20293024,858.04,857.1,0.58357229]
[1756947405269,0.20293024,858.04,857.11,0.58357229]
[1756947405474,0.20293024,858.04,857.06,1.571]
[1756947405771,0.20293024,858.04,857.07,0.58357229]
[1756947405974,0.20293024,858.04,857.08,0.58357229]
[1756947406171,0.20293024,858.04,857.09,0.58357229]
[1756947406469,0.20293024,858.04,857.06,1.571]
[1756947406675,0.20293024,858.04,857.07,0.58357229]
[1756947406869,0.20293024,858.04,857.06,1.571]
[1756947407071,0.20293024,858.04,857.07,0.58357229]
[1756947407271,0.20293024,858.04,857.06,1.571]
[1756947407469,0.20293024,858.04,857.07,0.58357229]
[1756947407671,0.20293024,858.04,857.07,1.83]
[1756947443501,2.6281651,857.96,857.07,1.83]
[1756947444000,2.6281651,857.95,857.07,1.83]
[1756947445007,2.6281651,857.93,857.07,1.83]
[1756947445508,2.6281651,857.93,857.08,1.848]
[1756947447605,2.6281651,857.85,857.08,1.848]
[1756947448104,0.20293024,858.04,857.08,1.848]
[1756947448105,2.6281651,857.84,857.08,1.848]
[1756947448706,2.6281651,857.86,857.08,1.848]
[1756947449208,2.6281651,857.89,857.08,1.848]
[1756947449809,2.6281651,857.92,857.08,1.848]
[1756947450312,2.6281651,857.89,857.08,1.848]
[1756947451213,0.20293024,858.04,857.08,1.848]
[1756947451214,2.6281651,857.98,857.08,1.848]
[1756947452010,2.6281651,857.99,857.08,1.848]
[1756947452914,0.20293024,858.04,857.08,1.848]
[1756947458016,0.20293024,858.04,857.09,1.827]
[1756947462822,2.6281651,858.03,857.09,1.827]
[1756947463322,2.6281651,857.96,857.09,1.827]
[1756947464520,2.6281651,858.01,857.09,1.827]
[1756947466524,0.20293024,858.04,857.09,1.827]
[1756947477635,0.20293024,858.04,857.1,1.7]
[1756947483437,2.6281651,857.96,857.1,1.7]
[1756947483936,2.6281651,857.78,857.1,1.7]
[1756947484239,2.6281651,857.76,857.1,1.7]
[1756947485233,2.6281651,857.89,857.1,1.7]
[1756947486938,0.20293024,858.04,857.1,1.7]
[1756947489442,2.83109534,858.04,857.1,1.7]
[1756947490542,2.6281651,858.03,857.1,1.7]
[1756947491044,2.83109534,858.04,857.1,1.7]
[1756947493042,0.20293024,858.04,857.1,1.7]
[1756947496949,2.6281651,857.92,857.1,1.7]
[1756947497349,2.6281651,858.02,857.1,1.7]
[1756947498050,0.20293024,858.04,857.1,1.7]
[1756947506757,2.6281651,857.9,857.1,1.7]
[1756947507253,2.6281651,857.89,857.1,1.7]
[1756947507754,2.6281651,857.8,857.1,1.7]
[1756947508756,2.6281651,857.79,857.1,1.7]
[1756947509459,2.6281651,857.75,857.1,1.7]
[1756947509860,2.6281651,857.88,857.1,1.7]
[1756947510860,2.6281651,857.84,857.1,1.7]
[1756947511458,2.6281651,857.85,857.1,1.7]
[1756947512961,2.6281651,857.83,857.1,1.7]
[1756947513563,2.6281651,857.85,857.1,1.7]
[1756947513959,2.6281651,857.84,857.1,1.7]
[1756947515662,2.6281651,857.85,857.1,1.7]
[1756947516666,2.6281651,857.86,857.1,1.7]
[1756947516961,2.6281651,857.86,857.11,1.743]
[1756947517665,2.6281651,857.88,857.11,1.743]
[1756947519866,2.6281651,857.87,857.11,1.743]
[1756947520266,2.6281651,857.86,857.11,1.743]
[1756947523369,2.6281651,857.82,857.11,1.743]
[1756947525670,2.6281651,857.85,857.11,1.743]
[1756947526569,2.6281651,857.83,857.11,1.743]
[1756947527672,2.6281651,857.82,857.11,1.743]
[1756947529677,2.6281651,857.73,857.11,1.743]
[1756947530372,2.6281651,857.71,857.11,1.743]
[1756947530676,2.6281651,857.88,857.11,1.743]
[1756947533482,2.6281651,857.72,857.11,1.743]
[1756947535482,2.6281651,857.69,857.11,1.743]
[1756947535885,2.6281651,857.71,857.11,1.743]
[1756947537584,2.6281651,857.72,857.11,1.743]
[1756947538484,2.6281651,857.71,857.11,1.743]